lending/lending_fUSD_20251111
["ID","MTS","AMOUNT","RATE_DAILY","PERIOD"]
[393658488,1762889440711,-150.0,0.00034487,7]
[393658489,1762889440722,-150.0,0.00034487,2]
[393658490,1762889440733,-150.0,0.00034487,7]
[393658491,1762889440743,-150.0,0.00034487,7]
[393658492,1762889440753,-150.0,0.00034487,7]
[393658493,1762889440763,-150.0,0.00034487,7]
[393658494,1762889440773,-150.0,0.00034487,7]
[393658495,1762889440783,-150.0,0.00034487,7]
[393658496,1762889440793,-150.0,0.00034487,7]
[393658497,1762889440803,-150.0,0.00034487,7]
[393658498,1762889440814,-150.0,0.00034487,7]
[393658499,1762889440823,-150.0,0.00034487,7]
[393658500,1762889440833,-500.0,0.00034487,7]
[393658501,1762889440843,-236.53954979,0.00034487,7]
[393658502,1762889440853,-22283.45306127,0.00034488,3]
[393658503,1762889440866,-4860.16518457,0.00034488,3]
[393658504,1762889440878,-4639.83481543,0.00034488,3]
[393658505,1762889440890,-816.99729022,0.00034488,3]
[393658506,1762889440912,-24463.95449009,0.00034488,3]
[393658507,1762889443008,-263.54098702,0.00033247,2]
[393658508,1762889443019,-107491.91481842,0.00034488,3]
[393658509,1762889443028,-90682.4816682,0.00034488,3]
[393658510,1762889443037,-1707.44692141,0.0003449,2]
[393658511,1762889443049,-151.0,0.00034495,14]
[393658512,1762889443059,-150.0,0.00034496,2]
[393658513,1762889443068,-150.0,0.00034496,2]
[393658514,1762889443078,-150.0,0.00034496,2]
[393658515,1762889443092,-150.0,0.00034496,2]
[393658516,1762889443102,-150.0,0.00034496,2]
[393658517,1762889443111,-150.0,0.00034496,120]
[393658518,1762889443121,-150.0,0.00034496,2]
[393658519,1762889443131,-150.0,0.00034496,2]
[393658520,1762889443140,-150.0,0.00034496,2]
[393658521,1762889443149,-500.0,0.00034496,2]
[393658522,1762889443160,-150.0,0.00034496,2]
[393658523,1762889443169,-500.0,0.00034496,2]
[393658524,1762889443179,-500.0,0.00034496,2]
[393658525,1762889443189,-500.0,0.00034496,2]
[393658526,1762889443198,-500.0,0.00034496,2]
[393658527,1762889443207,-500.0,0.00034496,2]
[393658528,1762889443216,-500.0,0.00034496,2]
[393658529,1762889443226,-500.0,0.00034496,2]
[393658530,1762889443235,-500.0,0.00034496,2]
[393658531,1762889443245,-168.34614064,0.00034496,2]
[393658532,1762889443255,-150.0,0.00034496,2]
[393658533,1762889443264,-150.0,0.00034496,2]
[393658534,1762889443275,-150.0,0.00034496,2]
[393658535,1762889443285,-150.0,0.00034496,2]
[393658536,1762889443294,-150.0,0.00034496,2]
[393658537,1762889443303,-500.0,0.00034498,20]
[393658538,1762889443313,-500.0,0.00034498,7]
[393658539,1762889443323,-500.0,0.00034498,7]
[393658540,1762889443333,-500.0,0.00034498,20]
[393658542,1762889443342,-500.0,0.00034498,20]
[393658544,1762889443352,-570.32987996,0.00034498,20]
[393658545,1762889443361,-500.0,0.00034498,20]
[393658546,1762889443371,-500.0,0.00034498,20]
[393658547,1762889443380,-151.0,0.00034498,31]
[393658548,1762889443391,-500.0,0.00034498,20]
[393658549,1762889443402,-420000.0,0.00034498,2]
[393658550,1762889443413,-559.92231787,0.00034521,5]
[393658551,1762889443422,-1000.0,0.00034521,5]
[393658552,1762889443433,-1000.0,0.00034521,5]
[393658553,1762889443442,-4318.21341277,0.00034547,3]
[393658554,1762889443452,-1125.0812,0.0003455,2]
[393658555,1762889443462,-6856.51331916,0.00034557,3]
[393658556,1762889443471,-4318.21341277,0.00034557,3]
[393658557,1762889443482,-4318.21341277,0.00034563,3]
[393658558,1762889443492,-13713.0266383,0.00034567,3]
[393658559,1762889443501,-12954.6402383,0.00034567,3]
[393658560,1762889443512,-500.0,0.00034573,5]
[393658561,1762889443522,-500.0,0.00034573,5]
[393658562,1762889443533,-200.0,0.00034573,5]
[393658563,1762889443543,-500.0,0.00034573,5]
[393658565,1762889443552,-500.0,0.00034573,5]
[393658567,1762889443561,-500.0,0.00034573,5]
[393658568,1762889443571,-169.64122107,0.00034574,14]
[393658569,1762889443580,-4975.6250858,0.00034577,2]
[393658570,1762889443589,-1061.9293954,0.00034577,2]
[393658571,1762889443599,-17602.545019,0.00034577,2]
[393658572,1762889443608,-3704.4493209,0.00034577,2]
[393658573,1762889443617,-1000.0,0.000346,7]
[393658574,1762889443629,-217.22277107,0.00034601,2]
[393658575,1762889443638,-157.55671658,0.00034622,14]
[393658576,1762889443647,-150.0,0.00034622,14]
[393658577,1762889443656,-150.0,0.00034624,7]
[393658578,1762889443666,-150.0,0.00034624,7]
[393658579,1762889443675,-150.0,0.00034624,7]
[393658580,1762889443685,-150.0,0.00034624,7]
[393658581,1762889443695,-150.0,0.00034624,7]
[393658582,1762889443704,-150.0,0.00034624,7]
[393658583,1762889443714,-150.0,0.00034624,2]
[393658584,1762889443723,-150.0,0.00034624,7]
[393658585,1762889443733,-150.0,0.00034624,7]
[393658586,1762889443742,-150.0,0.00034624,7]
[393658587,1762889443752,-150.0,0.00034624,7]
[393658588,1762889443762,-150.0,0.00034633,2]
[393658589,1762889443771,-150.0,0.00034633,2]
[393658590,1762889443781,-150.0,0.00034633,120]
[393658591,1762889443790,-150.0,0.00034633,2]
[393658592,1762889443799,-150.0,0.00034633,2]
[393658593,1762889443809,-500.0,0.00034633,2]
[393658594,1762889443818,-150.0,0.00034633,2]
[393658595,1762889443828,-150.0,0.00034633,2]
[393658596,1762889443838,-150.0,0.00034633,2]
[393658597,1762889443847,-150.0,0.00034633,2]
[393658598,1762889443857,-500.0,0.00034712,2]
[393658599,1762889443867,-4318.21341277,0.00034738,3]
[393658600,1762889443882,-6856.51331916,0.00034749,3]
[393658601,1762889443892,-4318.21341277,0.00034749,3]
[393658602,1762889443902,-212.85,0.00034752,14]
[393658603,1762889443912,-6856.51331916,0.00034758,3]
[393658604,1762889443921,-150.0,0.00034759,14]
[393658605,1762889443931,-150.0,0.00034761,7]
[393658606,1762889443940,-200.0,0.00034761,7]
[393658607,1762889443949,-200.0,0.00034761,7]
[393658608,1762889443959,-200.0,0.00034761,7]
[393658609,1762889443968,-200.0,0.00034761,7]
[393658610,1762889443978,-200.0,0.00034761,7]
[393658611,1762889443988,-150.0,0.00034761,2]
[393658612,1762889443998,-150.0,0.00034761,7]
[393658613,1762889444008,-200.0,0.00034761,7]
[393658614,1762889444017,-200.0,0.00034761,7]
[393658615,1762889444026,-150.0,0.00034761,7]
[393658616,1762889444035,-4318.21341277,0.00034763,3]
[393658617,1762889444045,-200.0,0.0003477,2]
[393658618,1762889444054,-200.0,0.0003477,2]
[393658619,1762889444063,-150.0,0.0003477,120]
[393658620,1762889444073,-150.0,0.0003477,2]
[393658621,1762889444084,-200.0,0.0003477,2]
[393658622,1762889444095,-557.89774482,0.0003477,2]
[393658623,1762889444104,-150.0,0.0003477,2]
[393658624,1762889444114,-150.0,0.0003477,2]
[393658625,1762889444125,-200.0,0.0003477,2]
[393658626,1762889444136,-200.0,0.0003477,2]
[393658627,1762889444145,-500.0,0.00034773,5]
[393658628,1762889444155,-500.0,0.00034773,5]
[393658629,1762889444167,-500.0,0.00034773,5]
[393658630,1762889444177,-499.34352506,0.00034773,5]
[393658631,1762889444187,-500.0,0.00034773,5]
[393658632,1762889444196,-500.0,0.00034773,5]
[393658633,1762889444206,-6856.51331916,0.00034788,3]
[393658634,1762889444215,-8636.42682554,0.00034788,3]
[393658635,1762889444225,-4224.12,0.00034798,2]
[393658636,1762889444234,-5000.0,0.00034798,2]
[393658637,1762889444243,-3061.69,0.00034798,2]
[393658638,1762889444253,-200.0,0.00034798,2]
[393658639,1762889444262,-4318.21341277,0.00034832,3]
[393658640,1762889444273,-6856.51331916,0.00034843,3]
[393658641,1762889444282,-6856.51331916,0.00034863,3]
[393658642,1762889444291,-4318.21341277,0.00034863,3]
[393658643,1762889444301,-4318.21341277,0.0003487,3]
[393658644,1762889444310,-332.04793929,0.00034873,5]
[393658645,1762889444320,-166.70999592,0.00034873,5]
[393658646,1762889444329,-160.92833107,0.00034873,5]
[393658647,1762889444340,-326.51647096,0.00034873,5]
[393658648,1762889444351,-500.0,0.00034873,5]
[393658649,1762889444360,-500.0,0.00034873,5]
[393658650,1762889444370,-500.0,0.00034873,5]
[393658651,1762889444380,-6856.51331916,0.0003488,3]
[393658652,1762889444503,-500.0,0.00034892,20]
[393658653,1762889444514,-273.00202241,0.00034896,14]
[393658654,1762889444524,-250.0,0.00034898,7]
[393658655,1762889444535,-250.0,0.00034898,2]
[393658656,1762889444546,-150.0,0.00034898,7]
[393658657,1762889444556,-167.94249467,0.00034898,7]
[393658658,1762889444565,-247.18095782,0.000349,2]
[393658659,1762889444575,-25909.2804766,0.00034902,3]
[393658660,1762889444584,-192.62111701,0.00034907,120]
[393658661,1762889444594,-150.0,0.00034907,2]
[393658662,1762889444604,-150.0,0.00034907,2]
[393658663,1762889444614,-150.0,0.00034907,2]
[393658664,1762889444628,-185.32066399,0.00034912,2]
[393658665,1762889444639,-4318.21341277,0.00034963,3]
[393658666,1762889444648,-500.0,0.00034965,2]
[393658667,1762889444659,-504.01852181,0.00034973,5]
[393658668,1762889444668,-500.0,0.00034973,5]
[393658669,1762889444678,-500.0,0.00034973,5]
[393658670,1762889444688,-160.80926206,0.00034973,5]
[393658671,1762889444697,-500.0,0.00034973,5]
[393658672,1762889444707,-160.7909722,0.00034973,5]
[393658673,1762889444716,-501.05520094,0.00034973,5]
[393658674,1762889444725,-12954.6402383,0.00034988,3]
[393658675,1762889444734,-260.10326545,0.00034989,20]
[393658676,1762889444744,-12954.6402383,0.0003499,3]
[393658677,1762889444753,-211.88298933,0.0003499,2]
[393658678,1762889444762,-247.18095782,0.00034998,2]
[393658679,1762889444771,-200.0,0.00034998,2]
[393658680,1762889444780,-200.0,0.00034998,2]
[393658681,1762889444790,-15007.05045412,0.00034998,2]
[393658682,1762889444800,-500.0,0.00034999,2]
[393658683,1762889444810,-500.0,0.00034999,2]
[393658684,1762889444819,-261.58404056,0.00035,2]
[393658685,1762889444829,-298.95318921,0.00035,2]
[393658686,1762889444839,-466.64724378,0.00035,2]
[393658687,1762889444848,-401.73418365,0.00035,2]
[393658688,1762889444858,-1220.63106498,0.00035,2]
[393658689,1762889444868,-27377.90336606,0.00035,2]
[393658690,1762889444878,-4318.21341277,0.00035014,3]
[393658691,1762889444888,-810.79479847,0.00035024,2]
[393658692,1762889444898,-9091.36843056,0.00035024,2]
[393658693,1762889444909,-212.85,0.00035025,14]
[393658694,1762889444919,-256.0,0.00035035,7]
[393658695,1762889444929,-250.0,0.00035044,2]
[393658696,1762889444939,-250.0,0.00035044,2]
[393658697,1762889444949,-150.0,0.00035044,2]
[393658698,1762889444959,-4318.21341277,0.00035049,3]
[393658699,1762889444969,-1500.0,0.00035068,5]
[393658700,1762889444978,-1500.0,0.00035068,5]
[393658701,1762889444989,-2652.7,0.00035077,2]
[393658702,1762889444998,-6317.86,0.0003511,2]
[393658703,1762889445008,-500.0,0.00035121,5]
[393658704,1762889445018,-21173.72948963,0.00035167,2]
[393658705,1762889445027,-150.0,0.00035181,2]
[393658706,1762889445037,-400.0,0.00035258,5]
[393658707,1762889445047,-212.85,0.00035299,14]
[393658708,1762889445056,-166.66,0.00035306,30]
[393658709,1762889445066,-1000.0,0.00035321,5]
[393658710,1762889445075,-1007.25530539,0.00035321,5]
[393658711,1762889445089,-1000.0,0.00035321,5]
[393658712,1762889445099,-1000.0,0.00035321,5]
[393658713,1762889445108,-200.0,0.00035348,2]
[393658714,1762889445117,-200.0,0.00035348,2]
[393658715,1762889445127,-556.09,0.000354,14]
[393658716,1762889445138,-1000.0,0.00035421,5]
[393658717,1762889445148,-1000.0,0.00035421,5]
[393658718,1762889445160,-181.26,0.00035483,2]
[393658719,1762889445169,-936.96,0.00035499,2]
[393658720,1762889445179,-503.03430724,0.00035521,5]
[393658721,1762889445187,-1012.15760982,0.00035521,5]
[393658722,1762889445196,-836.41765726,0.00035521,5]
[393658723,1762889445205,-1125.08121,0.0003555,2]
[393658724,1762889445215,-212.88,0.00035573,14]
[393658725,1762889445224,-2797.08631066,0.00035601,2]
[393658726,1762889445234,-2000.0,0.00035616,5]
[393658727,1762889445243,-2000.0,0.00035616,5]
[393658728,1762889445254,-1000.0,0.00035619,2]
[393658729,1762889445264,-810.79479847,0.0003566,2]
[393658730,1762889445274,-9091.36843056,0.0003566,2]
[393658731,1762889445283,-200.0,0.00035701,2]
[393658732,1762889445292,-2000.0,0.000358,2]
[393658733,1762889445302,-724.91970809,0.00035847,2]
[393658734,1762889445311,-1500.0,0.00035868,5]
[393658735,1762889445320,-1500.0,0.00035868,5]
[393658736,1762889445329,-1500.0,0.00035868,5]
[393658737,1762889445339,-167.38263506,0.000359,2]
[393658738,1762889445348,-154.539638,0.00035914,3]
[393658739,1762889445358,-152.133885,0.00035914,3]
[393658740,1762889445373,-500.0,0.00035921,2]
[393658741,1762889445392,-500.0,0.00035931,2]
[393658742,1762889445407,-500.0,0.00035931,2]
[393658743,1762889445416,-504.24437337,0.00035942,5]
[393658744,1762889445427,-291.6032622,0.00035968,5]
[393658745,1762889445438,-1500.0,0.00035968,5]
[393658746,1762889445448,-150.0,0.00035973,5]
[393658747,1762889445458,-500.0,0.00035999,2]
[393658748,1762889445469,-231484.77454323,0.00036,2]
[393658749,1762889445479,-10711.87011921,0.00036,2]
[393658750,1762889445489,-1055.02,0.00036,30]
[393658751,1762889445499,-2500.0,0.00036164,5]
[393658752,1762889445508,-2500.0,0.00036164,5]
[393658753,1762889445517,-166.66,0.00036168,30]
[393658754,1762889445527,-300.0,0.00036168,2]
[393658755,1762889445537,-1000.0,0.0003621,7]
[393658756,1762889445547,-810.79479847,0.00036296,2]
[393658757,1762889445557,-9091.36843056,0.00036296,2]
[393658758,1762889445568,-186.13127658,0.00036322,15]
[393658759,1762889445578,-258.78366937,0.00036416,5]
[393658760,1762889445589,-505.28082667,0.00036416,5]
[393658761,1762889445600,-2000.0,0.00036416,5]
[393658762,1762889445612,-2000.0,0.00036516,5]
[393658763,1762889445622,-250.0,0.00036521,5]
[393658764,1762889445632,-1125.0812,0.0003655,2]
[393658765,1762889445641,-2596.0,0.00036598,5]
[393658766,1762889445651,-1000.0,0.00036603,7]
[393658767,1762889445661,-1000.0,0.00036619,7]
[393658768,1762889445671,-1000.0,0.00036626,7]
[393658769,1762889445681,-2033.28886465,0.00036712,5]
[393658770,1762889445691,-3000.0,0.00036712,5]
[393658771,1762889445703,-1000.0,0.00036747,7]
[393658772,1762889445715,-166.66,0.00036748,2]
[393658773,1762889445726,-936.96,0.00036782,2]
[393658774,1762889445735,-556.09,0.000368,14]
[393658775,1762889445747,-171.16,0.00036816,14]
[393658776,1762889445757,-319.35,0.00036825,2]
[393658777,1762889445767,-1000.0,0.000369,7]
[393658778,1762889445776,-810.79479847,0.00036932,2]
[393658779,1762889445786,-167.38263505,0.00036953,2]
[393658780,1762889445797,-2140.6446686,0.00036964,5]
[393658781,1762889445807,-1000.0,0.00037053,7]
[393658782,1762889445816,-1044.43506824,0.00037064,5]
[393658783,1762889445825,-450.61887653,0.00037068,5]
[393658784,1762889445835,-1255.0,0.00037072,2]
[393658785,1762889445844,-297.05,0.00037077,14]
[393658786,1762889445854,-189.48,0.00037183,14]
[393658787,1762889445863,-1055.02,0.000372,30]
[393658788,1762889445872,-154.539638,0.00037201,3]
[393658789,1762889445883,-153.163044,0.00037201,3]
[393658790,1762889445893,-152.133885,0.00037201,3]
[393658791,1762889445904,-154.539638,0.00037208,2]
[393658792,1762889445913,-1000.0,0.00037242,7]
[393658793,1762889445923,-3500.0,0.0003726,5]
[393658794,1762889445933,-1000.0,0.00037262,7]
[393658795,1762889445943,-1255.0,0.00037274,7]
[393658796,1762889445953,-1000.0,0.00037291,7]
[393658797,1762889445963,-1000.0,0.00037299,7]
[393658798,1762889445973,-1255.0,0.00037313,2]
[393658799,1762889445983,-1000.0,0.00037348,7]
[393658800,1762889445992,-1000.0,0.00037371,7]
[393658801,1762889446002,-1000.0,0.00037375,7]
[393658802,1762889446011,-1000.0,0.00037476,7]
[393658803,1762889446021,-1000.0,0.00037482,7]
[393658804,1762889446031,-5170.32231685,0.00037486,2]
[393658805,1762889446040,-1000.0,0.00037509,7]
[393658806,1762889446050,-1255.0,0.00037533,2]
[393658807,1762889446061,-300.0,0.00037538,2]
[393658808,1762889446071,-1125.08121,0.0003755,2]
[393658809,1762889446080,-810.79479847,0.00037568,2]
[393658810,1762889446094,-1396.88,0.00037623,2]
[393658811,1762889446103,-954.01,0.00037623,2]
[393658812,1762889446113,-699.29,0.00037623,2]
[393658813,1762889446126,-477.64,0.00037623,2]
[393658814,1762889446137,-477.64,0.00037623,2]
[393658815,1762889446147,-699.29,0.00037623,2]
[393658816,1762889446157,-477.64,0.00037623,2]
[393658817,1762889446171,-477.64,0.00037623,2]
[393658818,1762889446180,-477.64,0.00037623,2]
[393658819,1762889446192,-699.29,0.00037623,2]
[393658820,1762889446202,-477.64,0.00037623,2]
[393658821,1762889446212,-699.29,0.00037623,2]
[393658822,1762889446222,-242.92534768,0.00037707,7]
[393658823,1762889446233,-1000.0,0.00037763,7]
[393658824,1762889446243,-1000.0,0.00037795,7]
[393658825,1762889446253,-1000.0,0.00037799,2]
[393658826,1762889446263,-1000.0,0.00037808,5]
[393658827,1762889446274,-1000.0,0.00037818,7]
[393658828,1762889446284,-168.0,0.00037892,120]
[393658829,1762889446293,-1000.0,0.00037916,7]
[393658830,1762889446305,-1000.0,0.00037954,7]
[393658831,1762889446314,-291.71272991,0.00037973,5]
[393658832,1762889446324,-200.0,0.00038,120]
[393658833,1762889446333,-60000.0,0.00038,20]
[393658834,1762889446344,-154.0,0.00038,30]
[393658835,1762889446353,-167.38263505,0.00038005,2]
[393658836,1762889446363,-168.0,0.00038042,120]
[393658837,1762889446372,-1000.0,0.00038051,7]
[393658838,1762889446382,-936.96,0.00038066,2]
[393658839,1762889446392,-556.09,0.000381,14]
[393658840,1762889446402,-1000.0,0.00038163,7]
[393658841,1762889446412,-168.0,0.00038184,2]
[393658842,1762889446421,-1000.0,0.00038185,7]
[393658843,1762889446431,-1255.0,0.00038196,120]
[393658844,1762889446441,-810.79479847,0.00038204,2]
[393658845,1762889446451,-154.539638,0.00038205,2]
[393658846,1762889446461,-153.163044,0.00038205,2]
[393658847,1762889446471,-152.133885,0.00038205,2]
[393658848,1762889446481,-186.13127658,0.00038217,15]
[393658849,1762889446491,-1000.0,0.00038233,7]
[393658850,1762889446501,-1000.0,0.00038239,7]
[393658851,1762889446512,-166.66,0.00038264,2]
[393658852,1762889446523,-1000.0,0.00038314,7]
[393658853,1762889446533,-500.0,0.00038356,20]
[393658855,1762889446542,-500.0,0.00038356,20]
[393658857,1762889446552,-500.0,0.00038356,20]
[393658859,1762889446562,-500.0,0.00038356,20]
[393658861,1762889446572,-500.0,0.00038356,20]
[393658863,1762889446582,-500.0,0.00038356,20]
[393658865,1762889446591,-500.0,0.00038356,20]
[393658867,1762889446601,-500.0,0.00038356,20]
[393658869,1762889446611,-434.48358519,0.00038356,20]
[393658871,1762889446620,-522.7,0.00038356,2]
[393658873,1762889446630,-500.0,0.00038356,2]
[393658875,1762889446640,-500.0,0.00038356,2]
[393658877,1762889446649,-500.0,0.00038356,2]
[393658879,1762889446659,-500.0,0.00038356,2]
[393658881,1762889446668,-500.0,0.00038356,2]
[393658883,1762889446677,-500.0,0.00038356,2]
[393658885,1762889446686,-500.0,0.00038356,2]
[393658887,1762889446695,-1000.0,0.00038356,120]
[393658888,1762889446704,-1000.0,0.00038356,120]
[393658891,1762889446715,-447.85631159,0.00038356,120]
[393658893,1762889446724,-500.0,0.00038356,2]
[393658894,1762889446734,-500.0,0.00038356,2]
[393658896,1762889446743,-500.0,0.00038356,2]
[393658898,1762889446753,-500.0,0.00038356,2]
[393658900,1762889446762,-500.0,0.00038356,2]
[393658902,1762889446772,-500.0,0.00038356,2]
[393658904,1762889446781,-500.0,0.00038356,20]
[393658906,1762889446790,-500.0,0.00038356,20]
[393658908,1762889446799,-500.0,0.00038356,20]
[393658910,1762889446809,-500.0,0.00038356,20]
[393658912,1762889446819,-500.0,0.00038356,20]
[393658914,1762889446828,-500.0,0.00038356,20]
[393658916,1762889446841,-500.0,0.00038356,20]
[393658918,1762889446851,-500.0,0.00038356,20]
[393658920,1762889446860,-500.0,0.00038356,20]
[393658922,1762889446870,-500.0,0.00038356,20]
[393658924,1762889446880,-500.0,0.00038356,20]
[393658926,1762889446890,-500.0,0.00038356,20]
[393658928,1762889446899,-500.0,0.00038356,20]
[393658930,1762889446910,-500.0,0.00038356,2]
[393658932,1762889446919,-500.0,0.00038356,2]
[393658934,1762889446929,-500.0,0.00038356,2]
[393658936,1762889446938,-500.0,0.00038356,2]
[393658938,1762889446948,-500.0,0.00038356,2]
[393658940,1762889446957,-416.25271004,0.00038356,2]
[393658942,1762889446967,-500.0,0.00038356,30]
[393658944,1762889446976,-1055.02,0.000384,30]
[393658946,1762889446986,-168.0,0.00038449,2]
[393658947,1762889446996,-154.539638,0.00038488,3]
[393658949,1762889447006,-153.163044,0.00038488,3]
[393658951,1762889447015,-152.133885,0.00038488,3]
[393658953,1762889447024,-816.95,0.00038512,30]
[393658955,1762889447034,-1000.0,0.00038528,7]
[393658957,1762889447043,-1125.08121,0.0003855,2]
[393658959,1762889447053,-575.24,0.00038582,2]
[393658961,1762889447063,-477.64,0.00038582,2]
[393658963,1762889447072,-477.64,0.00038582,2]
[393658965,1762889447083,-477.64,0.00038582,2]
[393658967,1762889447095,-477.64,0.00038582,2]
[393658969,1762889447105,-477.64,0.00038582,2]
[393658971,1762889447114,-477.64,0.00038582,2]
[393658973,1762889447127,-477.64,0.00038582,2]
[393658976,1762889447137,-477.64,0.00038582,2]
[393658977,1762889447147,-477.64,0.00038582,2]
[393658980,1762889447158,-1000.0,0.00038623,7]
[393658981,1762889447169,-500.0,0.0003863,30]
[393658983,1762889447178,-698.95,0.00038644,2]
[393658985,1762889447188,-477.64,0.00038644,2]
[393658988,1762889447198,-477.64,0.00038644,2]
[393658990,1762889447208,-477.64,0.00038644,2]
[393658992,1762889447218,-477.64,0.00038644,2]
[393658994,1762889447227,-477.64,0.00038644,2]
[393658996,1762889447238,-477.64,0.00038644,2]
[393658997,1762889447248,-477.64,0.00038644,2]
[393658999,1762889447257,-477.64,0.00038644,2]
[393659001,1762889447266,-477.64,0.00038644,2]
[393659003,1762889447275,-477.64,0.00038644,2]
[393659005,1762889447284,-190.1,0.00038644,2]
[393659007,1762889447294,-699.29,0.00038645,2]
[393659009,1762889447303,-699.29,0.00038645,2]
[393659011,1762889447312,-699.29,0.00038645,2]
[393659013,1762889447322,-699.29,0.00038645,2]
[393659015,1762889447331,-477.64,0.00038645,2]
[393659017,1762889447340,-477.64,0.00038645,2]
[393659019,1762889447351,-1000.0,0.00038649,7]
[393659021,1762889447360,-168.0,0.00038659,7]
[393659023,1762889447370,-1000.0,0.00038671,7]
[393659025,1762889447379,-1000.0,0.00038746,7]
[393659027,1762889447388,-319.35,0.00038764,2]
[393659029,1762889447397,-168.0,0.00038777,2]
[393659031,1762889447407,-1000.0,0.00038811,7]
[393659033,1762889447416,-5310.0,0.00038813,2]
[393659035,1762889447426,-810.79479847,0.0003884,2]
[393659037,1762889447436,-168.0,0.0003886,120]
[393659039,1762889447445,-500.01,0.00038904,30]
[393659041,1762889447455,-181.26,0.00038908,2]
[393659055,1762889447572,-168.0,0.00038953,2]
[393659057,1762889447582,-1000.0,0.00038957,7]
[393659059,1762889447592,-1110.2120222,0.00038987,2]
[393659061,1762889447603,-3927.6586891,0.00038987,2]
[393659063,1762889447612,-826.5743702,0.0003899,2]
[393659065,1762889447621,-1000.0,0.00038998,7]
[393659067,1762889447631,-1000.0,0.00039017,7]
[393659069,1762889447641,-168.0,0.00039036,7]
[393659071,1762889447650,-167.38263505,0.00039058,2]
[393659073,1762889447659,-168.0,0.0003909,2]
[393659075,1762889447668,-820.0,0.00039111,2]
[393659077,1762889447677,-1597.0,0.00039111,2]
[393659079,1762889447687,-813.0,0.00039111,2]
[393659081,1762889447698,-1274.0,0.00039111,2]
[393659083,1762889447707,-906.0,0.00039111,2]
[393659085,1762889447716,-1189.0,0.00039111,2]
[393659087,1762889447726,-587.435,0.00039111,2]
[393659089,1762889447736,-608.0,0.00039111,2]
[393659091,1762889447745,-3426.0,0.00039111,2]
[393659093,1762889447755,-6664.0,0.00039111,2]
[393659095,1762889447764,-150.0,0.00039121,2]
[393659097,1762889447773,-150.0,0.00039121,2]
[393659099,1762889447783,-150.219,0.00039121,2]
[393659101,1762889447794,-150.161,0.00039121,2]
[393659103,1762889447804,-150.0,0.00039121,2]
[393659105,1762889447813,-150.0,0.00039121,2]
[393659107,1762889447823,-290.08,0.00039124,2]
[393659109,1762889447832,-312.49,0.00039124,2]
[393659111,1762889447841,-357.86,0.0003913,2]
[393659113,1762889447850,-726.79,0.0003913,2]
[393659115,1762889447860,-177.09,0.0003913,2]
[393659117,1762889447869,-150.0,0.0003913,2]
[393659119,1762889447878,-150.0,0.0003913,2]
[393659121,1762889447888,-177.09,0.0003913,2]
[393659123,1762889447897,-150.0,0.0003913,2]
[393659124,1762889447906,-150.0,0.0003913,2]
[393659127,1762889447916,-177.09,0.0003913,2]
[393659129,1762889447925,-150.0,0.0003913,2]
[393659131,1762889447935,-150.0,0.0003913,2]
[393659132,1762889447944,-177.09,0.0003913,2]
[393659134,1762889447953,-150.0,0.0003913,2]
[393659136,1762889447962,-150.0,0.0003913,2]
[393659138,1762889447972,-380.32,0.0003913,2]